bitfinex/quotes_ETHUSD_20220308
["timestamp","ask_amount","ask_price","bid_price","bid_amount"]
[1646717403160,7.35,2527.4,2527.1,0.3]
[1646717403360,3.4016,2527.3,2527.2,3.0]
[1646717403962,3.4016,2527.3,2527.1,3.26797]
[1646717404209,3.4016,2527.3,2527.2,3.98932]
[1646717404610,3.4016,2527.3,2527.2,4.98932]
[1646717405309,7.35,2527.4,2527.2,4.98932]
[1646717405708,7.35,2527.4,2527.2,6.96763]
[1646717406007,0.00521877,2527.8,2527.2,4.98932]
[1646717406609,10.85,2528.0,2527.2,4.98932]
[1646717406812,7.35,2528.0,2527.5,0.98919]
[1646717407112,0.00322322,2527.8,2527.5,0.98919]
[1646717407314,0.00322322,2527.8,2527.7,3.0]
[1646717407716,0.00322322,2527.8,2527.7,4.87872176]
[1646717407970,0.00322322,2527.8,2527.7,3.87872176]
[1646717408159,0.00322341,2527.9,2527.7,4.87872176]
[1646717408359,0.00322341,2527.9,2527.8,0.98912]
[1646717408958,7.35,2528.0,2527.8,0.98912]
[1646717409159,7.35,2528.0,2527.9,3.0]
[1646717409361,7.35322341,2528.0,2527.9,4.0]
[1646717409560,7.35322341,2528.0,2527.9,4.98914]
[1646717410164,7.35322341,2528.0,2527.9,0.98914]
[1646717410372,7.35,2528.0,2527.8,1.2811231]
[1646717410565,8.0,2527.9,2526.5,4.3156162]
[1646717410765,8.3948,2527.9,2526.3,1.53964801]
[1646717410964,8.3948,2527.9,2526.2,1.00327847]
[1646717410965,0.3948,2527.6,2526.2,1.00327847]
[1646717411165,0.3948,2527.4,2526.2,0.3958]
[1646717411369,1.18035482,2526.4,2526.2,0.3958]
[1646717411822,1.18035482,2526.4,2525.5,3.1941645]
[1646717411823,9.3948,2526.3,2525.5,3.19938872]
[1646717412024,10.1858,2526.3,2525.5,3.19938872]
[1646717412222,0.3948,2526.1,2525.5,3.19938872]
[1646717412420,4.77131,2526.2,2525.5,3.19938872]
[1646717412421,0.3948,2525.9,2525.5,3.19938872]
[1646717412622,3.8948,2525.8,2525.5,3.19938872]
[1646717412821,3.8948,2525.8,2525.5,3.1941645]
[1646717412822,0.88543873,2525.6,2525.5,3.1941645]
[1646717413024,4.38543873,2525.6,2525.5,3.19616796]
[1646717413820,4.38543873,2525.6,2525.5,2.67978431]
[1646717414022,3.8948,2525.6,2524.4,0.00096]
[1646717414223,3.8948,2525.6,2524.3,1.2439]
[1646717414224,11.06925404,2525.6,2525.4,0.0020035]
[1646717414421,5.87582,2525.5,2525.4,0.0020035]
[1646717414622,6.56462,2525.5,2525.4,0.0020035]
[1646717414822,7.86462,2525.5,2525.4,0.0020035]
[1646717415021,0.3948,2525.4,2525.0,3.19389232]
[1646717415221,0.90704483,2525.1,2525.0,3.19389232]
[1646717416063,4.40704483,2525.1,2525.0,3.19389232]
[1646717416263,0.90704483,2525.1,2525.0,3.19389232]
[1646717416866,0.69246904,2525.1,2525.0,3.19389232]
[1646717417266,4.58726904,2525.1,2525.0,3.19389232]
[1646717419613,9.06452308,2525.1,2525.0,3.19389232]
[1646717420011,9.26252308,2525.1,2525.0,3.19389232]
[1646717420512,9.26252308,2525.1,2524.9,0.00505402]
[1646717420713,3.5,2525.0,2524.9,0.00505402]
[1646717420917,3.8948,2525.0,2524.9,0.00505402]
[1646717421112,0.91623384,2524.6,2524.3,0.00096]
[1646717421314,3.8948,2525.0,2524.2,0.3]
[1646717421517,8.00505404,2525.1,2524.8,0.00505409]
[1646717422318,8.00505404,2525.1,2524.7,0.99035]
[1646717422721,8.00505404,2525.1,2524.8,0.00494333]
[1646717423571,8.00505404,2525.1,2524.7,0.99035]
[1646717423768,8.00505404,2525.1,2524.8,0.00494333]
[1646717424169,11.50505404,2525.1,2524.8,0.00494333]
[1646717424369,8.00505404,2525.1,2524.8,0.00494333]
[1646717424570,3.5278,2525.1,2524.8,0.00494333]
[1646717424768,4.47725404,2525.0,2524.3,0.00096]
[1646717424973,4.47725404,2525.0,2524.8,0.00494333]
[1646717425167,4.49170123,2524.9,2524.8,0.00494333]
[1646717425969,4.49170123,2524.9,2524.1,0.00096]
[1646717426171,4.49170123,2524.9,2524.7,0.00495255]
[1646717426172,5.48235123,2524.9,2524.7,0.00495255]
[1646717426369,4.49170123,2524.9,2524.7,0.00495255]
[1646717426813,3.5,2524.8,2524.7,0.00495255]
[1646717427213,3.5,2524.8,2524.0,0.00096]
[1646717427412,3.5,2524.8,2524.7,0.00495259]
[1646717428219,5.5,2524.7,2523.5,1.41024016]
[1646717428419,0.412,2523.9,2522.3,3.14203006]
[1646717428616,6.132,2522.9,2521.6,0.006029]
[1646717428818,3.0,2522.3,2521.9,7.9291]
[1646717429017,3.0,2522.0,2521.4,0.012058]
[1646717429218,4.4917833,2522.2,2521.1,0.0065898]
[1646717429219,6.132,2521.5,2521.1,0.0065898]
[1646717429417,6.132,2521.2,2520.0,0.09848224]
[1646717429619,0.9749193,2520.2,2520.0,0.04214928]
[1646717429919,10.123,2520.1,2520.0,0.04214928]
[1646717430319,10.123,2520.1,2520.0,0.08705474]
[1646717430572,10.123,2520.1,2520.0,0.4371285]
[1646717430770,6.623,2520.1,2520.0,0.4371285]
[1646717430970,6.623,2520.1,2519.7,0.0761927]
[1646717430971,0.86770967,2519.8,2519.7,0.0761927]
[1646717431171,1.35870967,2519.8,2519.7,0.09663486]
[1646717431376,0.86770967,2519.8,2519.7,0.09663486]
[1646717431970,1.35870967,2519.8,2519.7,0.09663486]
[1646717432173,1.35870967,2519.8,2519.7,3.486e-05]
[1646717432372,1.35870967,2519.8,2519.6,0.0642479]
[1646717432373,3.5,2519.7,2519.6,0.0642479]
[1646717432574,3.5,2519.7,2519.6,3.444e-05]
[1646717432575,11.70521262,2519.7,2519.6,3.444e-05]
[1646717432772,5.5,2519.6,2519.0,0.0561821]
[1646717432974,0.99296,2519.4,2519.0,0.0561821]
[1646717433173,4.98401,2519.5,2519.0,8.21e-05]
[1646717433174,3.991,2519.3,2519.0,8.21e-05]
[1646717433375,5.491,2519.2,2518.8,0.04672134]
[1646717433572,3.5,2519.1,2518.8,0.14595349]
[1646717433770,0.491,2519.0,2518.8,0.14595349]
[1646717434212,0.491,2519.6,2518.8,0.14595349]
[1646717434411,3.1772,2519.7,2518.8,0.04672134]
[1646717434613,3.1772,2519.7,2518.9,0.0358434]
[1646717435012,3.1772,2519.7,2519.4,1.09289804]
[1646717435212,3.1772,2519.7,2518.9,0.0358434]
[1646717435412,4.47725404,2519.3,2518.9,0.0358434]
[1646717435812,4.47725404,2519.3,2519.2,0.00522196]
[1646717436816,4.47725404,2519.3,2518.9,0.0358434]
[1646717437018,4.47725404,2519.3,2519.1,0.005222]
[1646717438089,4.47725404,2519.3,2518.9,0.0358434]
[1646717438282,4.47725404,2519.3,2519.1,0.00504579]
[1646717438884,4.96825404,2519.3,2519.1,0.00504579]
[1646717439286,4.96825404,2519.3,2518.9,0.0358434]
[1646717439484,4.47725404,2519.3,2519.1,0.00504579]
[1646717440084,3.5,2519.2,2519.1,0.00504579]
[1646717440285,4.47725404,2519.3,2519.1,0.00504579]
[1646717440486,3.5,2519.5,2518.9,0.0358434]
[1646717440686,0.491,2519.4,2519.1,0.00504579]
[1646717441286,3.1772,2519.7,2519.1,0.00504579]
[1646717441490,3.5,2519.6,2519.1,0.00504579]
[1646717441716,3.5,2519.6,2518.9,0.0358434]
[1646717441928,0.491,2519.5,2519.1,0.00505171]
[1646717442121,3.6983,2519.4,2519.1,0.00505171]
[1646717442323,0.491,2519.3,2519.1,5.171e-05]
[1646717442522,0.491,2519.3,2518.8,8.342e-05]
[1646717442523,0.0008,2519.0,2518.8,8.342e-05]
[1646717442723,0.0008,2519.0,2518.1,0.0205909]
[1646717442724,1.03648074,2518.8,2518.1,0.0205909]
[1646717442923,3.991,2518.7,2518.1,0.0196309]
[1646717443323,5.291,2518.7,2518.1,0.0196309]
[1646717443525,7.4866785,2518.6,2518.1,3.09e-05]
[1646717443727,3.991,2518.5,2518.1,3.09e-05]
[1646717443926,5.5,2518.3,2517.9,0.056725]
[1646717444127,3.991,2518.2,2517.9,0.056725]
[1646717444325,0.491,2518.1,2517.9,2.5e-05]
[1646717444527,0.491,2518.1,2517.4,0.0321311]
[1646717444528,4.5,2517.9,2517.4,0.0321311]
[1646717444727,3.991,2517.8,2517.4,0.0321311]
[1646717444926,4.9847,2517.8,2517.4,0.0321311]
[1646717445126,3.5,2517.7,2517.3,0.33938001]
[1646717445328,5.1832,2517.8,2517.3,0.33938001]
[1646717445329,0.491,2517.6,2517.3,0.34586521]
[1646717445567,0.491,2517.5,2517.3,0.34586521]
[1646717445964,3.5,2517.4,2517.3,0.34586521]
[1646717446163,0.491,2517.4,2517.3,0.34586521]
[1646717446363,0.491,2517.4,2517.3,0.1177869]
[1646717446969,0.491,2517.4,2517.3,3.23e-05]
[1646717446970,6.2371,2517.4,2517.3,3.23e-05]
[1646717447175,5.5,2517.3,2517.0,0.00011474]
[1646717447367,0.0128865,2517.1,2517.0,0.00011474]
[1646717447568,4.0038865,2517.1,2517.0,0.00011474]
[1646717447767,0.5038865,2517.1,2517.0,0.00011474]
[1646717447968,3.207,2517.2,2517.0,0.00011474]
[1646717448968,3.698,2517.2,2517.0,0.00011474]
[1646717449233,3.207,2517.2,2517.0,0.00011474]
[1646717450021,3.207,2517.2,2517.1,0.89429168]
[1646717450221,4.47725404,2517.6,2517.1,1.19429168]
[1646717450420,4.47725404,2517.6,2517.5,1.12761089]
[1646717450821,4.47725404,2517.6,2517.5,1.82241089]
[1646717451222,3.0264,2518.3,2517.7,0.3948]
[1646717451426,3.0264,2518.3,2517.7,3.3948]
[1646717451722,3.0264,2518.3,2517.7,3.6948]
[1646717451926,3.0264,2518.3,2517.7,4.6948]
[1646717452331,3.0264,2518.3,2518.0,0.3948]
[1646717452527,0.0008,2519.0,2518.2,0.3948]
[1646717452728,0.0008,2519.0,2517.9,3.21537024]
[1646717452729,0.78959999,2518.1,2517.9,4.61017024]
[1646717452962,0.78959999,2518.1,2517.9,3.61017024]
[1646717453161,0.78959999,2518.1,2517.9,4.61017024]
[1646717453361,0.0008,2519.0,2518.5,1.14532237]
[1646717454568,0.0008,2519.0,2518.9,0.88658312]
[1646717454766,0.0008,2519.0,2518.5,0.3948]
[1646717454767,3.4508,2519.6,2518.5,0.3948]
[1646717455168,0.00524137,2518.9,2518.5,0.3948]
[1646717455569,0.00524137,2518.9,2518.5,1.38736]
[1646717455769,0.00524137,2518.9,2518.5,1.20422987]
[1646717456170,5.34038746,2519.6,2518.5,1.20422987]
[1646717456171,4.34771746,2519.6,2518.5,1.20422987]
[1646717456371,4.34771746,2519.6,2518.5,1.20518987]
[1646717456372,0.0052414,2518.8,2518.5,1.20518987]
[1646717456572,0.0052414,2518.8,2518.5,1.20422987]
[1646717457317,3.6493,2519.6,2518.5,1.20422987]
[1646717457620,0.00524144,2518.8,2518.5,1.20518987]
[1646717457818,0.00524144,2518.8,2518.5,1.20422987]
[1646717458420,3.6493,2519.6,2518.5,1.20422987]
[1646717458421,3.6493,2519.6,2518.5,1.59902987]
[1646717458623,0.00506847,2518.8,2518.5,1.59998987]
[1646717458822,0.00506847,2518.8,2518.5,1.59902987]
[1646717459624,3.5,2519.4,2518.5,1.59902987]
[1646717459823,3.5,2519.4,2518.2,3.19206538]
[1646717459824,0.00340416,2518.8,2518.3,0.00096]
[1646717460023,0.00340416,2518.8,2518.2,1.0]
[1646717460227,0.00340416,2518.8,2518.0,0.99277]
[1646717460673,0.00340416,2518.8,2517.7,0.00096]
[1646717460674,0.3948,2518.7,2517.7,0.00096]
[1646717460869,0.3948,2518.5,2517.7,0.93080811]
[1646717461171,0.00340416,2518.5,2517.7,0.93080811]
[1646717461370,0.00340416,2518.5,2517.7,1.32560811]
[1646717461768,0.00340416,2518.5,2517.7,1.77737204]
[1646717461968,0.1985,2519.6,2517.7,1.77737204]
[1646717461969,3.5,2519.3,2517.8,0.1985]
[1646717462169,1.1912054,2519.6,2518.7,1.11056966]
[1646717462170,0.3948,2519.4,2518.7,1.11056966]
[1646717462368,5.48547,2519.5,2518.7,1.11056966]
[1646717462369,3.5,2519.5,2518.7,1.11056966]
[1646717462772,3.6983,2519.5,2518.7,1.11056966]
[1646717463171,0.1983,2519.5,2518.7,1.41056966]
[1646717463368,0.99263,2519.6,2519.1,1.11356444]
[1646717463571,0.00524349,2519.2,2519.1,1.11356444]
[1646717463968,0.00524349,2519.2,2519.1,1.50836444]
[1646717464416,0.86770967,2519.8,2519.1,1.50836444]
[1646717464616,0.86770967,2519.8,2519.3,0.99216]
[1646717464816,0.86770967,2519.8,2519.7,0.92174521]
[1646717466018,0.86770967,2519.8,2519.7,1.91385521]
[1646717466826,5.4692,2520.6,2519.8,5.7625]
[1646717467021,10.85,2521.1,2519.9,0.3948]
[1646717467323,0.1983,2521.0,2520.2,1.38666]
[1646717467721,0.1983,2521.0,2520.5,1.04704311]
[1646717468166,5.08508,2521.1,2520.2,0.00096]
[1646717468368,5.08508,2521.1,2520.0,0.00096]
[1646717468568,5.08508,2521.1,2519.8,0.00096]
[1646717468769,5.08508,2521.1,2519.8,0.9921]
[1646717468970,4.88678,2521.1,2519.8,0.9921]
[1646717469170,1.9842,2520.9,2520.0,1.06624189]
[1646717469368,3.5,2520.8,2520.0,1.46104189]
[1646717469768,1.9842,2520.9,2520.0,1.46104189]
[1646717469970,4.49206,2520.8,2520.0,1.46104189]
[1646717470169,0.99206,2520.8,2520.0,1.46104189]
[1646717470473,0.99206,2520.8,2520.0,2.45307189]
[1646717470669,0.00524253,2520.5,2520.0,2.45307189]
[1646717471074,0.00524253,2520.5,2519.8,0.00096]
[1646717471270,0.99751503,2520.5,2519.5,0.00096]
[1646717471471,3.5,2520.4,2519.3,0.00096]
[1646717471948,3.5,2520.6,2519.8,1.03933366]
[1646717472148,0.00524283,2520.1,2519.8,1.03933366]
[1646717472848,4.49214,2520.8,2519.3,1.10540036]
[1646717472849,0.38486832,2519.4,2519.3,1.10540036]
[1646717473051,3.5,2520.8,2519.8,0.99208]
[1646717473249,0.00524286,2520.1,2519.8,2.07916654]
[1646717473852,0.00524286,2520.1,2519.8,1.08708654]
[1646717474152,3.5,2520.6,2519.6,1.98416]
[1646717474351,0.00524286,2520.1,2519.6,1.98416]
[1646717474550,0.00524286,2520.1,2519.6,2.37896]
[1646717475350,3.5,2520.6,2519.7,0.90530922]
[1646717475567,0.00506588,2520.0,2519.7,0.90530922]
[1646717475762,0.00506588,2520.0,2519.7,0.90626922]
[1646717475967,0.00506588,2520.0,2519.4,2.98433]
[1646717476164,0.00506588,2520.0,2519.4,1.98433]
[1646717476363,0.00506588,2520.0,2519.4,2.98433]
[1646717476566,3.5,2520.4,2519.4,1.98433]
[1646717476767,1.98457,2520.5,2519.4,2.98433]
[1646717476768,0.00506568,2520.0,2519.4,2.98433]
[1646717476969,0.00506568,2520.0,2519.7,0.90498781]
[1646717477167,0.00506568,2520.0,2519.7,1.89714781]
[1646717477768,5.40309421,2520.7,2519.7,0.90498781]
[1646717477969,0.00506588,2520.0,2519.5,0.00096]
[1646717478172,0.00506588,2520.0,2519.3,0.3]
[1646717478368,1.61659907,2519.9,2519.3,0.3]
[1646717478768,0.00506588,2520.0,2519.3,0.3]
[1646717478970,0.1983,2520.4,2519.7,1.18373944]
[1646717479225,0.00496458,2520.0,2519.8,0.99211]
[1646717479615,0.00496458,2520.0,2519.7,1.18373944]
[1646717480015,3.5,2520.5,2519.7,1.18373944]
[1646717480215,1.61652633,2520.4,2519.7,1.18373944]
[1646717480416,0.00496492,2520.0,2519.7,1.18373944]
[1646717480821,0.00496492,2520.0,2519.7,2.17587944]
[1646717481317,3.5,2520.9,2519.7,2.17587944]
[1646717481517,1.6163409,2520.8,2520.3,0.92383696]
[1646717481717,1.6163409,2520.8,2520.0,1.98393]
[1646717481920,3.5,2520.7,2520.0,1.98393]
[1646717482119,3.5,2520.7,2519.9,0.3]
[1646717482120,1.6163409,2520.6,2519.9,0.3]
[1646717482521,1.6163409,2520.5,2519.9,0.3]
[1646717482722,1.62131248,2520.4,2519.9,1.48849973]
[1646717482961,0.00497158,2520.4,2519.9,1.48849973]
[1646717483166,0.00497158,2520.4,2520.0,0.99207]
[1646717483365,0.00497158,2520.4,2520.0,1.29207]
[1646717483763,0.99212,2520.8,2520.0,1.29207]
[1646717484063,0.00497161,2520.3,2520.0,1.29207]
[1646717485064,3.6983,2521.1,2520.0,1.29207]
[1646717485264,3.6983,2521.1,2520.0,1.29303]
[1646717485265,0.00497165,2520.3,2520.0,1.29303]
[1646717485465,0.00497165,2520.3,2520.0,1.29207]
[1646717486065,3.5,2521.1,2520.0,1.29207]
[1646717486265,1.61623447,2521.0,2520.0,1.29303]
[1646717486466,0.00464173,2520.3,2520.2,1.04579104]
[1646717486923,0.00464173,2520.3,2520.2,2.03778104]
[1646717487222,4.49202,2521.1,2520.2,2.03778104]
[1646717487423,12.5287,2521.2,2520.2,2.03778104]
[1646717487623,0.00464166,2520.4,2520.2,2.03778104]
[1646717488428,0.00464166,2520.4,2520.2,3.02967104]
[1646717488627,5.1787,2521.2,2520.5,0.9918]
[1646717489424,3.5,2521.1,2520.5,0.9918]
[1646717489625,3.5,2521.1,2520.2,0.99294]
[1646717489826,3.5,2521.1,2520.2,0.99198]
[1646717490125,0.00466147,2521.0,2520.2,0.99198]
[1646717490560,0.00466147,2521.0,2520.3,1.05938892]
[1646717490966,3.5,2521.1,2520.3,1.05938892]
[1646717491162,0.00469608,2520.7,2520.2,0.17347695]
[1646717491462,0.00469608,2520.7,2520.2,0.99203]
[1646717492066,3.5,2521.1,2520.2,0.99203]
[1646717492266,1.04416627,2521.0,2520.2,0.99203]
[1646717492466,0.00310505,2520.6,2520.2,0.99203]
[1646717493065,0.00310505,2520.6,2520.2,1.28683]
[1646717493266,1.61614095,2521.0,2520.2,1.28683]
[1646717493468,1.61614095,2521.0,2520.5,0.99192]
[1646717493766,1.61614095,2521.0,2520.3,3.20075752]
[1646717494415,5.1787,2521.2,2520.3,3.59555752]
[1646717494615,5.1787,2521.2,2520.6,1.98339]
[1646717494815,0.00478215,2520.8,2520.6,1.98339]
[1646717495514,0.00478215,2520.8,2520.7,1.23202979]
[1646717495715,5.1787,2521.2,2520.7,1.23202979]
[1646717496118,0.00478212,2520.8,2520.7,3.43856831]
[1646717496315,0.00478212,2520.8,2520.7,5.62459603]
[1646717496715,0.00478212,2520.8,2520.7,5.63290293]
[1646717496919,5.4264,2521.6,2520.7,4.64120293]
[1646717497218,0.00477154,2520.9,2520.7,4.64120293]
[1646717497420,0.00477154,2520.9,2520.8,1.98342]
[1646717498064,5.4264,2521.6,2520.8,1.98342]
[1646717498263,1.6157587,2521.5,2520.9,0.99171]
[1646717498461,0.00466254,2521.0,2520.9,1.98341]
[1646717498665,0.00466254,2521.0,2520.9,2.28341]
[1646717499065,0.00466254,2521.0,2520.8,1.98342]
[1646717499263,8.9264,2521.6,2520.4,0.27405388]
[1646717499463,1.61582915,2521.5,2520.4,0.27501388]
[1646717499662,0.00466247,2521.1,2520.4,0.27501388]
[1646717499862,0.00466247,2521.1,2520.4,0.27405388]
[1646717500063,0.99704012,2521.1,2520.4,1.26593388]
[1646717500263,0.99704012,2521.1,2520.5,0.3]
[1646717500264,0.00466247,2521.1,2520.5,0.3]
[1646717500465,3.5,2521.4,2520.7,0.99187]
[1646717500664,1.61588475,2521.3,2520.7,0.99187]
[1646717500864,1.61588475,2521.3,2520.3,0.00096]
[1646717500865,0.00466698,2520.9,2520.3,0.00096]
[1646717501066,0.00466698,2520.9,2520.2,1.98369]
[1646717501727,3.5,2521.2,2520.3,2.97379576]
[1646717501916,0.00467472,2520.7,2520.3,3.96551576]
[1646717502117,0.00467472,2520.7,2520.3,4.26551576]
[1646717502317,0.00467472,2520.7,2520.3,4.51650153]
[1646717502517,0.00467472,2520.7,2520.3,5.51650153]
[1646717502919,5.4646,2521.3,2520.3,5.51650153]
[1646717503119,0.00467475,2520.6,2520.3,4.52478153]
[1646717503319,0.00467475,2520.6,2520.4,1.291765]
[1646717503520,0.00467475,2520.6,2520.4,2.283535]
[1646717504122,2.552456,2520.9,2520.5,1.98352]
[1646717504324,2.552456,2520.9,2520.7,1.08387233]
[1646717504720,2.552456,2520.9,2520.7,1.38387233]
[1646717505126,2.552456,2520.9,2520.8,0.99174]
[1646717505564,2.55712939,2520.9,2520.8,0.99174]
[1646717505765,5.4264,2521.6,2520.9,2.5]
[1646717505966,5.4264,2521.6,2521.2,1.12464728]
[1646717506267,5.4264,2521.6,2521.2,0.99146]
[1646717506268,2.0703,2521.6,2521.2,0.99146]
[1646717506469,2.0703,2521.6,2521.2,2.39696]
[1646717506665,10.85,2522.1,2521.4,0.9913204]
[1646717506666,2.021,2522.0,2521.4,0.9913204]
[1646717506869,1.61540526,2521.9,2521.4,2.9740604]
[1646717507273,1.61540526,2521.9,2521.5,2.15072828]
[1646717507669,1.61540526,2521.9,2521.5,0.99137]
[1646717508071,1.61540526,2521.9,2521.5,1.29137]
[1646717508670,1.61540526,2521.9,2521.5,0.3]
[1646717508877,1.61540526,2521.9,2521.4,1.98274]
[1646717509076,0.00498435,2521.8,2521.4,1.98274]
[1646717510217,2.021,2522.0,2521.4,1.98274]
[1646717510416,0.00470478,2521.7,2521.4,1.98274]
[1646717510615,0.00470478,2521.7,2521.4,2.97423]
[1646717511018,0.00470478,2521.7,2521.4,3.97423]
[1646717511217,0.00470478,2521.7,2521.5,13.49439616]
[1646717511416,7.35,2522.1,2521.5,13.49439616]
[1646717511417,7.35,2522.1,2521.5,13.7392806]
[1646717511620,7.35,2522.1,2521.5,17.4969406]
[1646717511621,0.00474462,2521.7,2521.5,17.4969406]
[1646717511821,0.00474462,2521.7,2521.6,2.2824059]
[1646717512020,0.00474462,2521.7,2521.6,14.3324059]
[1646717512221,5.3552,2522.5,2521.8,1.98258]
[1646717512420,1.61510654,2522.4,2522.0,0.99129]
[1646717512620,1.61510654,2522.4,2522.0,1.29129]
[1646717512822,3.3694,2522.5,2522.0,1.29129]
[1646717513265,3.3694,2522.5,2522.2,0.97060049]
[1646717513464,3.3694,2522.5,2522.3,0.99111]
[1646717513668,1.9858,2522.9,2522.2,4.6534042]
[1646717513865,1.9858,2522.9,2522.3,2.58414]
[1646717514067,1.9858,2522.9,2522.3,2.91934]
[1646717514268,3.5542,2523.2,2522.3,3.91934]
[1646717514469,1.61494248,2523.1,2522.8,1.04557473]
[1646717514670,7.35,2523.7,2522.9,0.21241124]
[1646717514868,1.61458592,2523.6,2522.9,1.6405]
[1646717515066,5.11458592,2523.5,2522.9,3.62208]
[1646717515267,0.00339532,2523.1,2522.9,1.6405]
[1646717515667,0.00339532,2523.1,2522.6,1.98213]
[1646717515867,1.00676358,2523.0,2522.2,0.00096]
[1646717516166,1.00676358,2523.0,2522.2,1.98223]
[1646717516167,5.11458592,2522.9,2522.2,1.98223]
[1646717516365,3.5,2522.9,2522.2,1.98223]
[1646717516830,1.0101589,2523.0,2522.3,1.98231]
[1646717517125,1.61501574,2522.9,2522.4,0.99115]
[1646717517526,0.00525096,2522.8,2522.4,0.99115]
[1646717517929,0.00525096,2522.8,2522.6,0.99112]
[1646717518329,0.00525096,2522.8,2522.6,1.98206]
[1646717518529,3.5542,2523.1,2522.6,1.98206]
[1646717518829,3.5542,2523.1,2522.8,0.99997933]
[1646717519029,3.5542,2523.1,2522.9,0.99099]
[1646717519228,5.2695,2523.5,2522.9,0.99099]
[1646717519433,1.61476958,2523.4,2522.9,2.97262]
[1646717519629,3.4898,2523.6,2523.1,0.26028582]
[1646717519829,3.4898,2523.6,2523.1,1.40208582]
[1646717520029,0.00525055,2523.3,2523.1,1.40208582]
[1646717520229,0.00525055,2523.3,2523.1,18.13759582]
[1646717520466,0.02099907,2523.7,2523.4,12.05]
[1646717520665,0.02099907,2523.7,2523.5,1.19995662]
[1646717521072,3.448,2524.2,2523.6,0.3]
[1646717521277,1.61432213,2524.1,2523.6,0.5329]
[1646717521475,10.85,2524.5,2523.7,0.99049]
[1646717521671,1.61419304,2524.4,2523.7,3.06807]
[1646717521872,1.61419304,2524.3,2523.7,1.0871]
[1646717522075,1.61419304,2524.2,2523.7,2.0871]
[1646717522273,1.04972034,2524.6,2523.7,2.16371318]
[1646717522472,1.61422406,2524.5,2523.7,2.16371318]
[1646717522972,1.61422406,2524.5,2523.9,0.99052]
[1646717523172,1.61422406,2524.5,2524.1,0.9905]
[1646717523671,0.00339137,2524.3,2524.1,1.2905]
[1646717524072,1.61761543,2524.3,2524.1,1.2905]
[1646717524316,0.00339137,2524.3,2524.1,1.2905]
[1646717524520,1.61420243,2524.6,2524.2,0.00106795]
[1646717524721,5.5898,2525.0,2524.5,1.06481818]
[1646717524916,0.01356343,2524.7,2524.5,1.06481818]
[1646717525119,0.01356343,2524.7,2524.5,0.3]
[1646717525518,0.01356343,2524.7,2524.5,0.9902]
[1646717525719,3.448,2525.0,2524.5,1.2902]
[1646717525920,1.61391834,2524.9,2524.6,0.9902]
[1646717526119,0.005254,2524.7,2524.6,0.9902]
[1646717526621,0.005254,2524.7,2524.6,1.9805]
[1646717527025,3.448,2525.0,2524.6,1.9805]
[1646717527328,0.00525396,2524.8,2524.6,1.9805]
[1646717527825,0.60208231,2524.5,2523.8,2.97123]
[1646717528068,0.60208231,2524.5,2523.5,1.2074]
[1646717528269,0.3948,2524.4,2523.4,0.9906156]
[1646717528467,0.3948,2524.4,2523.7,0.99061]
[1646717528667,0.3948,2524.2,2523.7,0.99061]
[1646717529072,0.3948,2524.2,2523.8,2.97183]
[1646717529474,4.49688231,2524.5,2523.9,0.9905]
[1646717529672,0.00525448,2524.1,2523.9,1.2905]
[1646717530180,0.00525448,2524.1,2524.0,0.9761878]
[1646717530572,0.62309708,2524.5,2524.0,0.9761878]
[1646717530573,0.60208231,2524.5,2524.1,0.99045]
[1646717530872,0.60208231,2524.5,2524.1,1.29045]
[1646717531075,0.00525441,2524.2,2524.1,1.29045]
[1646717531713,0.99688231,2524.5,2524.1,1.29045]
[1646717531919,0.00525433,2524.3,2524.1,1.29045]
[1646717533016,0.3948,2524.3,2524.1,0.99045]
[1646717533215,0.40005429,2524.3,2524.0,1.98089]
[1646717533615,0.00525429,2524.3,2524.0,1.98089]
[1646717533816,0.00525429,2524.3,2524.0,0.25899035]
[1646717534215,0.99688231,2524.5,2524.0,0.25899035]
[1646717534416,0.0050967,2524.3,2524.0,0.25899035]
[1646717535317,0.99688231,2524.5,2524.0,0.25899035]
[1646717535565,0.0047637,2524.3,2524.0,0.55899035]
[1646717535964,0.0047637,2524.3,2524.0,0.25899035]
[1646717536367,0.0047637,2524.3,2524.2,1.12653483]
[1646717536565,0.60208231,2524.5,2524.2,1.42653483]
[1646717536768,0.60208231,2524.5,2524.3,0.99035]
[1646717537974,0.60674401,2524.5,2524.3,0.99035]
[1646717538974,0.60208231,2524.5,2524.3,0.99035]
[1646717539210,0.60674401,2524.5,2524.3,0.99035]
[1646717540214,0.60208231,2524.5,2524.3,0.99035]
[1646717540415,0.60677872,2524.5,2524.3,0.99035]
[1646717541213,0.60677872,2524.5,2524.3,1.29035]
[1646717541416,0.60208231,2524.5,2524.4,2.9704]
[1646717541612,0.60678559,2524.5,2524.4,2.9704]
[1646717541815,0.60678559,2524.5,2524.4,3.9704]
[1646717542616,0.60208231,2524.5,2524.4,3.9704]
[1646717542816,3.46681016,2525.0,2524.9,0.95178233]
[1646717543072,3.46681016,2525.0,2524.9,3.41926233]
[1646717543073,0.01881016,2525.0,2524.9,3.41926233]
[1646717543269,0.01881016,2525.0,2524.9,4.41926233]
[1646717543870,5.5485,2525.7,2524.9,4.41926233]
[1646717544069,0.0030848,2525.1,2525.0,1.97991]
[1646717544469,0.0030848,2525.1,2525.0,2.27991]
[1646717544870,3.5,2525.6,2525.0,2.27991]
[1646717545075,1.61368166,2525.5,2525.1,0.99004]
[1646717545271,0.00469812,2525.2,2525.1,3.27021]
[1646717545471,0.00469812,2525.2,2525.1,2.28017]
[1646717545871,0.00469812,2525.2,2525.1,1.98017]
[1646717546072,0.01878966,2525.6,2525.1,1.98017]
[1646717546271,1.61368382,2525.5,2525.1,2.97021]
[1646717546470,2.09752081,2526.0,2525.1,2.97021]
[1646717546471,0.01878941,2525.7,2525.4,0.99004]
[1646717546717,0.01878941,2525.7,2525.1,2.97021]
[1646717546718,0.90377741,2525.3,2525.1,3.27021]
[1646717547724,0.90851769,2525.3,2525.1,3.27021]
[1646717547927,0.90851769,2525.3,2525.2,0.99004]
[1646717548329,0.90851769,2525.3,2525.2,1.29004]
[1646717548526,0.90377741,2525.3,2525.2,1.29004]
[1646717550770,0.90377741,2525.3,2525.2,0.99004]